bitfinex-derivatives/quotes_SOLF0:USTF0_20250919
["timestamp","ask_amount","ask_price","bid_price","bid_amount"]
[1758304990775,3.0735739,236.67,236.63,10.5413]
[1758304990972,3.0735739,236.66,236.63,3.8013]
[1758304991276,3.0735739,236.65,236.64,6.74]
[1758304992278,7.05,236.64,236.58,1.49190493]
[1758304992470,10.1235739,236.63,236.51,559.507834]
[1758304992674,3.0735739,236.62,236.55,8.23190493]
[1758304992876,3.0735739,236.61,236.57,6.74]
[1758304993072,10.1235739,236.6,236.56,3.8024]
[1758304993277,3.0735739,236.59,236.56,3.8024]
[1758304993481,3.0735739,236.58,236.56,10.5424]
[1758304993679,3.0735739,236.57,236.56,10.5424]
[1758304993979,3.0735739,236.59,236.56,10.5424]
[1758304994176,3.0735739,236.58,236.56,10.5424]
[1758304994482,3.0735739,236.57,236.56,10.5424]
[1758304994783,3.0735739,236.63,236.57,3.8022]
[1758304994972,3.10271931,236.62,236.57,3.8022]
[1758304995280,3.10271931,236.61,236.58,6.74]
[1758304995479,3.10271931,236.6,236.58,6.74]
[1758304995679,3.10271931,236.59,236.58,6.74]
[1758304996879,3.10271931,236.63,236.58,6.74]
[1758304997181,3.10271931,236.62,236.56,8.23190493]
[1758304997382,3.10271931,236.61,236.57,6.74]
[1758304997577,3.10271931,236.6,236.57,6.74]
[1758304997781,4.69428579,236.67,236.61,6.74]
[1758304997978,7.05,236.65,236.6,3.8018]
[1758304998174,10.15371033,236.64,236.6,3.8018]
[1758304998378,3.10371033,236.63,236.6,3.8018]
[1758304998576,3.10371033,236.62,236.6,10.5418]
[1758304998778,3.10371033,236.61,236.6,10.5418]
[1758304999082,3.10371033,236.61,236.6,6.74]
[1758305002086,3.10371033,236.61,236.59,10.5419]
[1758305002280,3.10371033,236.6,236.59,10.5419]
[1758305004591,12.09424786,236.71,236.64,3.8012]
[1758305004790,7.05,236.67,236.56,1.49190493]
[1758305005085,7.05,236.65,236.56,1.49190493]
[1758305005291,3.10355868,236.64,236.57,6.74]
[1758305005497,3.10355868,236.63,236.57,6.74]
[1758305005682,3.10355868,236.62,236.56,1.49190493]
[1758305005988,7.05,236.65,236.56,1.49190493]
[1758305005989,3.10355868,236.61,236.57,6.74]
[1758305006184,3.10355868,236.6,236.56,1.49190493]
[1758305006398,7.05,236.65,236.57,6.74]
[1758305006578,3.10332232,236.64,236.57,6.74]
[1758305006783,3.10332232,236.63,236.57,6.74]
[1758305006984,3.10332232,236.62,236.6,3.8018]
[1758305007184,3.10332232,236.61,236.6,3.8018]
[1758305007791,3.10332232,236.61,236.6,10.5418]
[1758305012495,4.69428579,236.7,236.64,3.8011]
[1758305012684,3.0985819,236.69,236.64,3.8011]
[1758305012994,7.18,236.67,236.64,3.8011]
[1758305013194,10.2785819,236.66,236.64,3.8011]
[1758305013395,3.0985819,236.65,236.64,3.8011]
[1758305016699,3.0985819,236.65,236.64,10.6311]
[1758305017098,3.10019225,236.68,236.67,10.6308]
[1758305017299,3.10020416,236.68,236.59,6.83]
[1758305017497,3.10020416,236.67,236.6,59.141]
[1758305017693,3.10020416,236.66,236.61,6.83]
[1758305017896,3.10020416,236.65,236.61,6.83]
[1758305018098,7.18,236.7,236.61,6.83]
[1758305018303,3.10031572,236.69,236.61,6.83]
[1758305018602,3.10031572,236.68,236.61,6.83]
[1758305018803,3.10031572,236.67,236.61,6.83]
[1758305019001,3.10031572,236.66,236.61,6.83]
[1758305019198,7.18,236.7,236.61,6.83]
[1758305019199,3.10031572,236.65,236.61,6.83]
[1758305019402,7.18,236.7,236.61,6.83]
[1758305019603,3.09703966,236.69,236.63,6.83]
[1758305019903,3.09703966,236.68,236.63,6.83]
[1758305020201,3.09703966,236.67,236.62,59.1371]
[1758305020396,3.09703966,236.66,236.62,59.1371]
[1758305020603,3.09703966,236.65,236.63,6.83]
[1758305020799,7.18,236.73,236.67,3.8007]
[1758305021002,10.27697729,236.72,236.63,6.83]
[1758305021201,3.09697729,236.71,236.63,6.83]
[1758305021407,3.09697729,236.7,236.63,6.83]
[1758305021610,3.09697729,236.69,236.63,6.83]
[1758305021810,3.09697729,236.68,236.64,6.83]
[1758305022113,3.09697729,236.67,236.63,59.1347]
[1758305022415,3.09697729,236.66,236.65,10.6312]
[1758305022606,3.09697729,236.66,236.65,6.83]
[1758305022803,3.09697729,236.71,236.65,6.83]
[1758305023010,3.09697729,236.7,236.63,6.83]
[1758305023210,3.09697729,236.69,236.63,6.83]
[1758305023513,3.09697729,236.68,236.63,6.83]
[1758305023712,3.09697729,236.67,236.62,59.1361]
[1758305023908,7.18,236.73,236.67,3.8007]
[1758305024110,3.09781921,236.72,236.67,3.8007]
[1758305024310,7.18,236.7,236.67,3.8007]
[1758305024516,3.09781921,236.69,236.67,3.8007]
[1758305024707,7.18,236.7,236.67,3.8007]
[1758305024708,3.09781921,236.68,236.67,3.8007]
[1758305029014,10.27781921,236.68,236.67,3.8007]
[1758305029717,10.27781921,236.68,236.59,6.83]
[1758305029918,3.09781921,236.67,236.59,6.83]
[1758305030116,3.09781921,236.66,236.59,6.83]
[1758305030418,3.09781921,236.65,236.59,6.83]
[1758305030621,3.09781921,236.64,236.62,3.8015]
[1758305030818,3.09781921,236.63,236.62,3.8015]
[1758305035519,3.09781921,236.63,236.6,3.8019]
[1758305035719,3.09781921,236.62,236.6,10.6319]
[1758305035915,3.09781921,236.61,236.6,10.6319]
[1758305040919,7.21,236.7,236.64,3.8012]
[1758305041224,3.09500484,236.69,236.64,3.8012]
[1758305041421,7.21,236.67,236.64,3.8012]
[1758305041722,4.69428579,236.71,236.64,3.8012]
[1758305041723,10.30500484,236.66,236.64,3.8012]
[1758305041922,3.09500484,236.65,236.64,3.8012]
[1758305044019,3.09500484,236.65,236.64,10.4212]
[1758305046525,3.09500484,236.7,236.67,3.8007]
[1758305046828,4.69428579,236.72,236.67,10.4207]
[1758305046829,3.09365148,236.69,236.67,10.4207]
[1758305047026,3.09365148,236.68,236.67,3.8007]
[1758305047720,3.09365148,236.68,236.67,10.4207]
[1758305049723,4.69428579,236.76,236.7,3.8003]
[1758305049926,7.21,236.73,236.7,3.8003]
[1758305050130,3.08769895,236.72,236.7,3.8003]
[1758305050324,7.21,236.73,236.7,3.8003]
[1758305050325,3.08769895,236.71,236.7,10.4203]
[1758305058537,3.08769895,236.71,236.67,2.33344566]
[1758305058538,0.02730037,236.73,236.72,10.42]
[1758305058929,3.11126592,236.73,236.72,10.42]
[1758305059130,3.09126592,236.73,236.72,10.42]
[1758305062441,0.00730037,236.73,236.72,10.42]
[1758305064338,7.21,236.8,236.78,3.799]
[1758305064532,3.08235218,236.79,236.78,10.419]
[1758305064735,3.08235218,236.79,236.78,6.62]
[1758305065037,3.08235218,236.79,236.77,6.62]
[1758305065334,3.08235218,236.78,236.77,6.62]
[1758305065937,3.08235218,236.78,236.77,10.4191]
[1758305066245,3.08235218,236.78,236.76,0.03141335]
[1758305066440,3.08235218,236.77,236.76,0.03141335]
[1758305067846,3.08235218,236.77,236.76,6.65141335]
[1758305071048,3.08235218,236.77,236.76,0.03141335]
[1758305072244,3.08235218,236.77,236.69,7.17]
[1758305072245,10.42235218,236.77,236.69,7.17]
[1758305072437,7.34,236.73,236.65,7.17]
[1758305072638,1.49186743,236.71,236.66,3.801]
[1758305073337,7.34,236.7,236.66,3.801]
[1758305073739,7.34,236.7,236.65,7.17]
[1758305073740,7.34,236.7,236.64,0.43827936]
[1758305073941,3.06493326,236.69,236.64,0.43827936]
[1758305074138,7.34,236.67,236.64,0.43827936]
[1758305074650,7.34,236.67,236.64,4.23947936]
[1758305074850,7.34,236.67,236.64,3.8012]
[1758305075747,7.34,236.67,236.65,3.801]
[1758305077745,1.52195105,236.71,236.65,3.801]
[1758305077951,10.40516675,236.7,236.65,3.801]
[1758305078246,8.83186743,236.68,236.62,10.9715]
[1758305078445,8.83186743,236.68,236.56,59.1515]
[1758305078446,7.34,236.66,236.6,103.3]
[1758305078652,1.49186743,236.68,236.6,103.3]
[1758305078952,3.06536061,236.67,236.61,7.17]
[1758305079250,3.09337761,236.66,236.61,7.17]
[1758305079452,0.028017,236.66,236.64,3.8013]
[1758305079645,7.368017,236.66,236.64,3.8013]
[1758305079847,7.368017,236.66,236.6,7.17]
[1758305080046,7.368017,236.66,236.6,68.49]
[1758305080740,7.368017,236.66,236.6,20.02196296]
[1758305080940,7.368017,236.66,236.6,123.32196296]
[1758305081851,0.028017,236.66,236.61,3.8018]
[1758305082054,7.34,236.65,236.61,10.9718]
[1758305082752,7.34,236.65,236.61,3.8018]
[1758305082951,7.34,236.65,236.62,7.17]
[1758305085053,7.34,236.65,236.61,3.8018]
[1758305085257,7.368017,236.66,236.62,7.17]
[1758305085553,3.0684811,236.65,236.61,3.8018]
[1758305085754,7.368017,236.66,236.62,7.17]
[1758305085956,3.06880266,236.65,236.63,7.17]
[1758305086150,7.368017,236.66,236.62,3.8015]
[1758305086355,7.368017,236.66,236.63,7.17]
[1758305086556,3.06879037,236.65,236.63,7.17]
[1758305086754,7.368017,236.66,236.63,7.17]
[1758305086955,3.06879037,236.65,236.63,7.17]
[1758305087153,0.028017,236.66,236.62,3.8015]
[1758305087356,3.06888247,236.65,236.63,7.17]
[1758305087555,0.028017,236.66,236.63,7.17]
[1758305087754,3.06866801,236.65,236.63,7.17]
[1758305087957,0.028017,236.66,236.63,7.17]
[1758305088158,3.06866189,236.65,236.63,7.17]
[1758305088352,0.028017,236.66,236.63,7.17]
[1758305088559,3.06853602,236.65,236.63,7.17]
[1758305088765,0.028017,236.66,236.63,7.17]
[1758305088954,3.06852606,236.65,236.63,7.17]
[1758305089154,0.028017,236.66,236.63,7.17]
[1758305089353,3.06853254,236.65,236.63,7.17]
[1758305089554,0.028017,236.66,236.63,7.17]
[1758305089755,3.06852943,236.65,236.63,7.17]
[1758305090050,0.028017,236.66,236.63,7.17]
[1758305090254,3.06853661,236.65,236.63,7.17]
[1758305090454,0.028017,236.66,236.63,7.17]
[1758305090956,0.028017,236.66,236.64,7.17]
[1758305091459,0.028017,236.66,236.65,7.17]
[1758305098871,6.63,236.74,236.68,3.8006]
[1758305099069,6.63,236.72,236.69,7.27]
[1758305099372,9.69736205,236.71,236.69,7.27]
[1758305099574,3.06736205,236.7,236.69,7.27]
[1758305102370,3.06736205,236.7,236.67,0.02722296]
[1758305102575,3.06736205,236.69,236.68,7.27]
[1758305102869,3.06736205,236.71,236.68,7.27]
[1758305103174,3.06736205,236.7,236.67,3.82792296]
[1758305103372,3.06736205,236.69,236.68,7.27]
[1758305103568,3.06736205,236.69,236.67,3.82792296]
[1758305103773,8.12186743,236.74,236.67,11.09792296]
[1758305104069,2.96955222,236.73,236.68,3.8005]
[1758305104277,2.92955222,236.72,236.68,7.27]
[1758305104471,6.63,236.75,236.68,7.27]
[1758305104770,6.63,236.79,236.68,7.27]
[1758305105163,1.49186743,236.8,236.69,7.27]
[1758305105372,6.63,236.79,236.69,7.27]
[1758305105770,6.63,236.79,236.7,3.8003]
[1758305106268,6.63,236.79,236.73,7.27]
[1758305106474,6.63,236.79,236.73,11.0698]
[1758305106678,6.63,236.79,236.73,7.27]
[1758305107671,11.32428579,236.79,236.73,7.27]
[1758305107971,1.49186743,236.74,236.72,0.02666648]
[1758305108276,6.63,236.73,236.72,0.02666648]
[1758305108477,6.63,236.73,236.66,3.801]
[1758305111081,6.63,236.73,236.66,11.071]
[1758305113781,6.63,236.73,236.66,7.27]
[1758305115682,6.63,236.73,236.66,11.071]
[1758305116075,3.07503577,236.72,236.67,7.27]
[1758305116277,3.07503577,236.71,236.65,7.27]
[1758305116473,3.07503577,236.7,236.69,7.27]
[1758305118084,3.07503577,236.7,236.69,8.76186743]
[1758305118284,0.02667502,236.72,236.71,7.27]
[1758305118586,3.10106126,236.72,236.71,7.27]
[1758305120986,3.10106126,236.72,236.64,7.27]
[1758305121183,3.07438624,236.71,236.64,7.27]
[1758305121382,3.07438624,236.7,236.64,7.27]
[1758305121582,3.07438624,236.69,236.63,1.49186743]
[1758305121777,3.07438624,236.68,236.63,1.49186743]
[1758305121985,3.07438624,236.67,236.63,1.49186743]
[1758305122287,0.02667502,236.72,236.64,7.27]
[1758305122494,3.07312383,236.71,236.64,7.27]
[1758305122790,3.07312383,236.7,236.65,3.801]
[1758305122990,3.07312383,236.69,236.66,7.27]
[1758305123180,3.07312383,236.68,236.66,7.27]
[1758305123385,9.70312383,236.67,236.63,7.27]
[1758305123684,9.70312383,236.67,236.6,1.49186743]
[1758305123685,9.70312383,236.66,236.6,110.51]
[1758305123887,3.07312383,236.65,236.6,103.24]
[1758305124082,3.07312383,236.64,236.61,7.27]
[1758305124280,3.07312383,236.63,236.61,7.27]
[1758305124481,0.02740533,236.65,236.61,7.27]
[1758305124780,3.07282929,236.64,236.61,7.27]
[1758305124984,3.07282929,236.63,236.61,7.27]
[1758305125181,0.02740533,236.65,236.61,7.27]
[1758305125383,3.07278392,236.64,236.6,3.8019]
[1758305125591,3.07278392,236.63,236.61,7.27]
[1758305125781,0.02740533,236.65,236.6,3.8019]
[1758305125981,3.0724693,236.64,236.61,7.27]
[1758305126186,3.0724693,236.63,236.6,3.8019]
[1758305126496,0.02740533,236.65,236.61,7.27]
[1758305126792,3.07199983,236.64,236.6,3.8019]
[1758305126992,3.07199983,236.63,236.61,7.27]
[1758305127192,0.02740533,236.65,236.61,7.27]
[1758305127394,3.07195567,236.64,236.61,7.27]
[1758305127593,3.07195567,236.63,236.6,3.8019]
[1758305127793,0.02740533,236.65,236.61,7.27]
[1758305127994,3.07195567,236.64,236.6,3.8019]
[1758305128183,3.07195567,236.63,236.6,3.8019]
[1758305128387,0.02740533,236.65,236.61,7.27]
[1758305128592,3.07254359,236.64,236.61,7.07]
[1758305128787,3.07254359,236.63,236.59,12.92223085]
[1758305128995,3.07253635,236.62,236.59,7.07]
[1758305129196,3.07253635,236.61,236.59,7.07]
[1758305129394,6.85740533,236.65,236.59,7.07]
[1758305129596,6.83,236.63,236.59,7.07]
[1758305129785,3.07170023,236.62,236.59,7.07]
[1758305129988,3.07170023,236.61,236.55,3.8027]
[1758305130194,0.02740533,236.65,236.56,7.07]
[1758305130195,9.90170023,236.6,236.56,7.07]
[1758305130395,3.07170023,236.59,236.56,7.07]
[1758305130593,3.0705587,236.58,236.56,7.07]
[1758305130793,0.03066964,236.6,236.56,7.07]
[1758305130996,3.07055603,236.59,236.56,7.07]
[1758305131197,3.07055603,236.58,236.56,7.07]
[1758305131397,6.86066964,236.6,236.56,7.07]
[1758305131593,3.06959662,236.59,236.56,7.07]
[1758305131792,3.06959662,236.58,236.56,7.07]
[1758305131993,6.86066964,236.6,236.56,7.07]
[1758305132192,3.06969999,236.59,236.56,7.07]
[1758305132388,6.86066964,236.6,236.56,7.07]
[1758305132590,9.85859175,236.59,236.52,79.26831853]
[1758305132794,6.83,236.59,236.52,182.52831853]
[1758305133397,6.83,236.59,236.53,3.803]
[1758305133703,0.03066964,236.6,236.53,7.07]
[1758305134000,0.03066964,236.6,236.54,3.8027]
[1758305134697,6.83,236.59,236.54,3.8027]
[1758305134897,0.03066964,236.6,236.54,3.8027]
[1758305136199,0.03066964,236.6,236.53,7.07]
[1758305136702,3.02659162,236.59,236.53,7.07]
[1758305136902,0.03066964,236.6,236.53,7.07]
[1758305137103,3.02663171,236.59,236.53,7.07]
[1758305137404,0.03066964,236.6,236.53,7.07]
[1758305137602,3.02576209,236.59,236.53,7.07]
[1758305137795,0.03066964,236.6,236.53,7.07]
[1758305137991,3.02576209,236.59,236.53,7.07]
[1758305138199,0.03066964,236.6,236.53,7.07]
[1758305138402,3.02517835,236.59,236.53,7.07]
[1758305138605,0.03066964,236.6,236.53,7.07]
[1758305138901,3.02518328,236.59,236.53,7.07]
[1758305139101,0.03066964,236.6,236.53,7.07]
[1758305141704,0.03066964,236.6,236.54,0.03031761]
[1758305145401,6.83,236.59,236.54,0.03031761]
[1758305145602,6.86066964,236.6,236.54,0.03031761]
[1758305145798,6.83,236.58,236.54,0.03031761]
[1758305146003,6.83,236.58,236.54,7.10031761]
[1758305146509,0.03066964,236.6,236.54,7.10031761]
[1758305146707,6.83,236.58,236.54,7.10031761]
[1758305147003,0.03066964,236.6,236.54,7.10031761]
[1758305147204,6.83,236.58,236.54,7.10031761]
[1758305147405,6.83,236.59,236.54,0.03031761]
[1758305147898,3.8025,236.57,236.54,0.03031761]
[1758305148502,0.42,236.56,236.43,7.07]
[1758305148713,9.85176847,236.55,236.43,7.07]
[1758305148903,6.83,236.53,236.43,7.07]
[1758305149208,6.83,236.51,236.43,7.07]
[1758305149903,0.031687,236.49,236.43,7.07]
[1758305150307,0.031687,236.49,236.36,59.201]
[1758305150308,0.031687,236.49,236.41,7.07]
[1758305150706,0.031687,236.49,236.44,3.8045]
[1758305151009,0.031687,236.49,236.41,7.07]
[1758305151411,0.031687,236.49,236.41,110.45]
[1758305151803,0.031687,236.49,236.45,3.8043]
[1758305152004,0.031687,236.49,236.46,7.07]
[1758305152206,0.031687,236.49,236.45,3.8043]
[1758305152603,0.031687,236.49,236.46,7.07]
[1758305152807,0.031687,236.49,236.42,66.2567]
[1758305153008,0.031687,236.49,236.44,7.07]
[1758305153507,0.031687,236.49,236.48,7.07]
[1758305156420,0.031687,236.49,236.45,3.8044]
[1758305156610,0.031687,236.49,236.46,7.07]
[1758305156815,0.031687,236.49,236.45,3.8044]
[1758305157011,0.031687,236.49,236.46,7.07]
[1758305157614,0.031687,236.49,236.45,3.8044]
[1758305157912,6.861687,236.49,236.46,7.07]
[1758305158407,0.031687,236.49,236.44,3.8044]
[1758305158612,0.031687,236.49,236.43,7.05]
[1758305159314,0.031687,236.49,236.46,7.05]
[1758305159616,0.031687,236.49,236.45,3.8043]
[1758305159813,0.031687,236.49,236.46,7.05]
[1758305160810,0.031687,236.49,236.45,3.8043]
[1758305161016,0.031687,236.49,236.46,7.05]
[1758305161218,0.031687,236.49,236.45,3.8043]
[1758305161616,0.031687,236.49,236.46,3.8041]
[1758305161915,0.031687,236.49,236.43,7.05]
[1758305163212,0.031687,236.49,236.47,3.804]
[1758305163418,0.031687,236.49,236.48,7.05]
[1758305168515,6.68,236.57,236.48,7.05]
[1758305168710,3.01896203,236.56,236.48,7.05]
[1758305168910,3.01896203,236.55,236.49,7.05]
[1758305169109,103.59848614,236.61,236.49,7.05]
[1758305169320,3.01981713,236.6,236.49,7.05]
[1758305169520,3.01981713,236.59,236.53,3.803]
[1758305169819,3.01981713,236.58,236.53,10.853]
[1758305170026,9.69981713,236.57,236.53,10.853]
[1758305170321,3.01981713,236.56,236.53,10.853]
[1758305170516,3.01981713,236.55,236.54,7.05]
[1758305170911,3.01981713,236.6,236.54,7.05]
[1758305171114,3.01981713,236.59,236.5,10.8534]
[1758305171315,9.69981713,236.58,236.46,7.05]
[1758305171514,6.68,236.56,236.46,7.05]
[1758305171720,6.70884799,236.54,236.46,7.05]
[1758305171918,3.01981713,236.53,236.46,7.05]
[1758305172315,3.01981713,236.53,236.42,70.5355864]
[1758305172316,3.01981713,236.53,236.42,77.5855864]
[1758305172618,6.68,236.52,236.42,77.5855864]
[1758305172824,6.68,236.5,236.42,77.5855864]
[1758305173027,3.01981713,236.49,236.43,7.05]
[1758305174220,3.01981713,236.49,236.43,10.8546]
[1758305175417,0.02711882,236.48,236.43,10.8546]
[1758305175615,0.02711882,236.48,236.44,7.05]
[1758305176824,0.02711882,236.48,236.43,3.8046]
[1758305177124,0.02711882,236.48,236.44,7.05]
[1758305177325,6.70711882,236.48,236.44,7.05]
[1758305177724,0.02711882,236.48,236.45,7.05]
[1758305178227,0.02711882,236.48,236.44,3.8044]
[1758305178426,0.02711882,236.48,236.45,7.05]
[1758305180024,0.02711882,236.48,236.45,3.8043]
[1758305180229,0.02711882,236.48,236.46,7.05]
[1758305182130,6.70711882,236.48,236.44,10.8544]
[1758305182928,6.70711882,236.48,236.45,7.05]
[1758305183329,6.70711882,236.48,236.45,10.8543]
[1758305183532,0.02711882,236.48,236.45,3.8043]
[1758305183731,0.02711882,236.48,236.46,7.05]
[1758305183933,0.02711882,236.48,236.45,3.8043]
[1758305184130,6.70711882,236.48,236.45,3.8043]
[1758305184527,3.0216612,236.47,236.43,7.05]
[1758305184723,9.70140487,236.46,236.37,7.05]
[1758305184935,0.02711882,236.48,236.34,0.43244779]
[1758305184936,6.68,236.44,236.34,0.43244779]
[1758305185135,3.02140487,236.43,236.34,0.43244779]
[1758305185327,3.02140487,236.42,236.34,0.43244779]
[1758305185635,3.04956949,236.41,236.35,7.05]
[1758305185836,9.70140487,236.4,236.35,7.05]
[1758305186031,6.68,236.4,236.35,7.05]
[1758305186538,6.68,236.4,236.34,11.28854779]
[1758305187438,6.68,236.4,236.36,3.8058]
[1758305187635,6.68,236.4,236.36,10.8558]
[1758305187936,6.68,236.4,236.36,7.05]
[1758305188238,3.01733505,236.39,236.36,7.05]
[1758305188533,0.02816462,236.41,236.34,0.43244779]
[1758305188534,6.96,236.37,236.34,0.43244779]
[1758305188733,6.96,236.4,236.34,0.43244779]
[1758305188930,0.02816462,236.41,236.34,4.23854779]
[1758305188931,3.01779929,236.39,236.34,4.23854779]
[1758305189135,3.01779929,236.38,236.35,6.71]
[1758305189336,6.98816462,236.41,236.35,6.71]
[1758305189638,9.97752256,236.4,236.34,4.23854779]
[1758305189838,9.97752256,236.39,236.35,6.71]
[1758305190034,3.01752256,236.38,236.35,6.71]
[1758305190234,6.96,236.39,236.35,6.74072279]
[1758305190436,3.01714633,236.38,236.35,6.74072279]
[1758305190636,6.96,236.4,236.35,6.74072279]
[1758305190839,6.96,236.38,236.35,0.03072279]
[1758305191032,0.02816462,236.41,236.35,0.03072279]
[1758305191335,6.96,236.39,236.35,0.03072279]
[1758305191637,3.01617021,236.38,236.35,0.03072279]
[1758305191841,6.96,236.36,236.35,0.03072279]
[1758305192641,0.02816462,236.41,236.35,0.03072279]
[1758305192837,3.06764166,236.4,236.35,0.03072279]
[1758305193142,3.06764166,236.39,236.35,0.03072279]
[1758305193442,10.02764166,236.38,236.35,0.03072279]
[1758305193629,3.06764166,236.37,236.35,0.03072279]
[1758305193834,6.96,236.38,236.35,0.03072279]
[1758305194036,0.02816462,236.41,236.35,6.74072279]
[1758305194037,3.06757253,236.37,236.35,6.74072279]
[1758305194232,0.02816462,236.41,236.35,0.03072279]
[1758305194434,6.96,236.39,236.35,0.03072279]
[1758305194637,6.96,236.37,236.35,0.03072279]
[1758305194837,0.02816462,236.41,236.35,0.03072279]
[1758305195144,6.96,236.39,236.35,0.03072279]
[1758305195336,6.96,236.37,236.34,0.43244779]
[1758305195541,6.96,236.35,236.34,0.43244779]
[1758305195743,10.02675441,236.35,236.34,0.43244779]
[1758305200739,3.06675441,236.35,236.34,0.43244779]
[1758305200939,6.96,236.39,236.34,0.43244779]
[1758305201138,3.06064095,236.38,236.34,0.43244779]
[1758305201341,0.02816462,236.41,236.34,0.43244779]
[1758305201643,3.06053642,236.4,236.34,0.43244779]
[1758305201844,6.96,236.38,236.34,0.43244779]
[1758305202046,10.02053642,236.37,236.34,0.43244779]
[1758305202240,6.96,236.37,236.34,0.43244779]
[1758305202649,6.96,236.4,236.34,0.43244779]
[1758305202846,3.06013221,236.39,236.34,0.43244779]
[1758305203043,6.96,236.37,236.34,0.43244779]
[1758305204047,6.96,236.4,236.34,0.43244779]
[1758305204347,0.02816462,236.41,236.34,0.43244779]
[1758305204348,3.05988266,236.39,236.34,0.43244779]
[1758305204543,3.05988266,236.38,236.34,0.43244779]
[1758305204749,6.96,236.4,236.34,0.43244779]
[1758305204948,6.96,236.38,236.34,0.43244779]
[1758305205140,3.83326462,236.41,236.34,0.43244779]
[1758305205346,10.01956774,236.4,236.34,0.43244779]
[1758305205548,3.05956774,236.39,236.34,0.43244779]
[1758305205751,6.96,236.38,236.34,0.43244779]
[1758305205945,6.96,236.4,236.34,0.43244779]
[1758305206140,3.05956964,236.39,236.34,0.43244779]
[1758305206350,6.96,236.37,236.34,0.43244779]
[1758305207448,3.83326462,236.41,236.34,0.43244779]
[1758305207750,10.01895061,236.4,236.34,0.43244779]
[1758305207950,6.96,236.38,236.34,0.43244779]
[1758305208147,6.96,236.4,236.34,0.43244779]
[1758305208450,3.05896658,236.39,236.34,0.43244779]
[1758305208651,6.96,236.37,236.34,0.43244779]
[1758305210050,6.96,236.37,236.34,7.14244779]
[1758305210849,0.02816462,236.41,236.34,7.14244779]
[1758305211052,3.05903371,236.4,236.34,7.14244779]
[1758305211348,6.96,236.38,236.35,6.71]
[1758305211549,6.96,236.4,236.34,0.43244779]
[1758305211742,3.05964605,236.39,236.34,0.43244779]
[1758305211949,6.96,236.4,236.34,0.43244779]
[1758305212146,6.96,236.38,236.34,0.43244779]
[1758305212449,6.96,236.4,236.34,7.14244779]
[1758305212646,0.02816462,236.41,236.34,7.14244779]
[1758305212647,6.96,236.38,236.34,7.14244779]
[1758305212847,6.96,236.4,236.34,0.43244779]
[1758305213049,6.96,236.38,236.34,0.43244779]
[1758305213243,6.96,236.4,236.34,0.43244779]
[1758305213449,3.0610566,236.39,236.34,0.43244779]
[1758305213747,6.96,236.37,236.34,0.43244779]
[1758305214542,6.96,236.4,236.34,0.43244779]
[1758305214747,3.06184008,236.39,236.34,0.43244779]
[1758305214946,6.96,236.37,236.34,0.43244779]
[1758305215653,6.96,236.4,236.34,0.43244779]
[1758305215950,6.96,236.38,236.34,0.43244779]
[1758305216150,10.02318458,236.37,236.34,0.43244779]
[1758305216351,3.06318458,236.36,236.34,0.43244779]
[1758305217254,6.96,236.4,236.34,0.43244779]
[1758305217556,3.06560882,236.39,236.34,0.43244779]
[1758305217751,6.96,236.37,236.34,0.43244779]
[1758305218054,3.06560882,236.36,236.34,7.14244779]
[1758305218255,6.96,236.35,236.34,0.43244779]
[1758305218444,10.02560882,236.35,236.34,0.43244779]
[1758305219154,3.06560882,236.35,236.34,7.06244779]
[1758305219351,3.06560882,236.38,236.34,7.06244779]
[1758305219656,3.06560882,236.37,236.34,7.06244779]
[1758305220560,3.06560882,236.36,236.34,7.06244779]
[1758305220751,3.06560882,236.35,236.34,7.06244779]